bitfinex/quotes_ETHUSD_20260129
["timestamp","ask_amount","ask_price","bid_price","bid_amount"]
[1769651291196,0.699,2997.3,2997.0,1.3938765]
[1769651291568,0.699,2997.2,2997.0,1.3938765]
[1769651292904,0.699,2997.2,2996.7,1.3938765]
[1769651293103,1.53311586,2997.2,2996.4,1.3938765]
[1769651293567,0.699,2997.1,2996.7,1.3938765]
[1769651295002,0.699,2997.0,2996.8,1.3938765]
[1769651295607,0.001,2997.5,2996.8,2.22809457]
[1769651295775,0.699,2997.4,2996.9,1.3938765]
[1769651296174,0.699,2997.4,2996.3,2.22822249]
[1769651296491,0.699,2997.4,2996.3,2.78481987]
[1769651296672,0.699,2997.4,2996.3,1.95045762]
[1769651296873,0.48584269,2997.3,2996.1,1.3938765]
[1769651297408,0.001,2997.5,2996.4,2.22820904]
[1769651297409,0.699,2997.2,2996.4,2.22820904]
[1769651297703,1.53316642,2997.1,2996.4,1.3938765]
[1769651297906,2.02012906,2997.1,2996.4,1.3938765]
[1769651301328,2.02012906,2997.1,2996.6,0.002]
[1769651304527,2.02012906,2997.1,2995.9,1.3958765]
[1769651304732,0.27415948,2997.0,2995.9,1.3958765]
[1769651305930,0.83419533,2996.9,2996.0,0.99485979]
[1769651306134,0.41709767,2996.8,2996.0,0.99485979]
[1769651306709,0.41709767,2996.8,2995.9,0.002]
[1769651308840,0.834251,2996.7,2995.9,0.002]
[1769651310441,1.04953593,2996.7,2995.9,0.002]
[1769651310644,0.834251,2996.7,2995.9,0.002]
[1769651310808,0.83430669,2996.5,2995.9,0.002]
[1769651311334,0.699,2996.4,2995.9,0.91097602]
[1769651313238,1.5333536,2996.4,2995.9,0.91097602]
[1769651313444,0.8343536,2996.4,2996.1,0.002]
[1769651313643,0.699,2996.3,2996.1,0.002]
[1769651313942,1.18605933,2996.3,2996.1,0.002]
[1769651315938,2.02044401,2996.3,2996.1,0.002]
[1769651318455,0.699,2996.2,2995.6,0.91097602]
[1769651319556,1.32144401,2996.3,2995.5,3.08e-06]
[1769651319557,0.699,2996.1,2995.5,3.08e-06]
[1769651320554,0.699,2996.0,2995.6,0.90897602]
[1769651320858,0.699,2995.9,2995.6,0.90897602]
[1769651321030,0.699,2995.9,2995.6,1.08333524]
[1769651324477,0.699,2995.9,2995.6,0.90897602]
[1769651324754,0.699,2995.8,2995.6,0.90897602]
[1769651326463,0.91428493,2995.7,2994.7,0.002]
[1769651326668,0.91028493,2995.6,2994.7,0.002]
[1769651326834,0.91028493,2995.3,2994.4,0.002]
[1769651327031,0.699,2995.2,2994.4,0.002]
[1769651327568,0.91028493,2995.1,2994.4,0.002]
[1769651327729,0.91028493,2995.1,2993.7,0.90897602]
[1769651327925,0.91028493,2994.9,2993.7,0.90897602]
[1769651328670,0.91028493,2994.9,2993.7,1.08338766]
[1769651328882,1.74506521,2994.8,2993.7,1.08338766]
[1769651329393,0.91028493,2994.5,2993.4,0.90897602]
[1769651330962,0.83489179,2994.4,2993.4,0.90897602]
[1769651331378,0.83489179,2994.4,2993.5,0.90897602]
[1769651331891,0.83479706,2994.8,2993.5,0.90897602]
[1769651332059,0.699,2994.7,2993.5,0.90897602]
[1769651332255,0.699,2994.7,2993.7,0.90897602]
[1769651332861,0.699,2994.6,2993.8,0.83505912]
[1769651333088,0.699,2994.6,2993.9,0.90897602]
[1769651333296,0.699,2994.5,2994.1,0.90897602]
[1769651333471,0.699,2994.5,2994.0,0.17440351]
[1769651333788,0.699,2994.5,2993.8,1.74403514]
[1769651333995,0.699,2994.5,2993.9,0.90897602]
[1769651334594,1.80259695,2995.4,2993.9,0.90897602]
[1769651334773,0.83461307,2995.4,2993.9,0.90897602]
[1769651334962,0.699,2995.3,2993.9,0.90897602]
[1769651335170,0.8346688,2995.2,2994.1,0.93590063]
[1769651335369,0.8346688,2995.2,2994.3,0.93590063]
[1769651335566,0.83465938,2995.3,2994.3,0.93590063]
[1769651335878,3.33800654,2995.9,2994.3,0.93590063]
[1769651336069,0.699,2995.8,2994.3,0.93590063]
[1769651336373,0.94930469,2995.8,2994.3,0.93590063]
[1769651336580,0.94930469,2995.6,2994.3,0.93590063]
[1769651337100,0.699,2995.7,2994.3,0.93590063]
[1769651337394,0.83455735,2995.6,2994.5,0.93590063]
[1769651337766,0.83453845,2995.7,2994.5,0.93590063]
[1769651337961,0.699,2995.6,2994.7,0.93590063]
[1769651338387,0.83453845,2995.7,2994.7,0.93590063]
[1769651338388,0.699,2995.5,2994.7,0.93590063]
[1769651338988,0.699,2995.5,2994.6,0.17707924]
[1769651339181,0.699,2995.5,2994.4,1.77079242]
[1769651339380,0.83461307,2995.4,2994.4,1.77079242]
[1769651339896,0.83461307,2995.4,2994.5,0.93590063]
[1769651341202,0.699,2995.3,2994.5,0.93590063]
[1769651341401,0.8346688,2995.2,2994.5,0.93590063]
[1769651341589,0.8346688,2995.2,2994.5,1.11297987]
[1769651341770,0.8346688,2995.2,2994.5,1.94783937]
[1769651341966,1.53365993,2995.3,2994.5,1.94783937]
[1769651342306,0.699,2995.2,2994.6,0.93590063]
[1769651342466,0.83460462,2995.5,2994.6,0.93590063]
[1769651342797,0.83457781,2995.6,2994.7,1.13068457]
[1769651343003,0.699,2995.5,2994.7,1.13068457]
[1769651343388,0.001,2995.7,2994.8,1.77068091]
[1769651343603,0.699,2995.6,2994.9,0.93590063]
[1769651345413,0.001,2995.7,2995.0,0.83472454]
[1769651345628,0.699,2995.6,2995.1,0.17706252]
[1769651346125,0.001,2995.7,2995.1,1.11296315]
[1769651346287,0.699,2995.6,2995.1,1.11296315]
[1769651346619,0.7,2995.7,2995.1,1.11296315]
[1769651347720,0.7,2995.7,2995.2,0.93590063]
[1769651348016,0.001,2995.7,2995.3,0.19476406]
[1769651348821,0.001,2995.7,2995.3,1.13066469]
[1769651349606,3.33723832,2996.5,2995.5,0.93590063]
[1769651349814,3.33723832,2996.5,2995.3,3.53321635]
[1769651349815,0.699,2996.0,2995.3,1.02938416]
[1769651349992,0.699,2996.0,2995.3,0.19476406]
[1769651350595,0.699,2996.0,2995.3,1.02940477]
[1769651350993,0.699,2996.0,2995.3,0.19476406]
[1769651351294,0.699,2996.0,2995.3,1.02939688]
[1769651351490,0.699,2996.0,2995.4,1.13243038]
[1769651351696,0.699,2996.0,2995.5,1.77048584]
[1769651352224,0.001,2995.8,2995.5,0.93590063]
[1769651352427,0.001,2995.8,2995.4,0.19652975]
[1769651352601,0.001,2995.8,2995.4,0.83460518]
[1769651353907,0.001,2995.8,2995.4,0.93590063]
[1769651354120,0.95030469,2995.8,2994.2,0.93590063]
[1769651354291,0.95030469,2995.8,2994.3,0.93590063]
[1769651354623,0.77553252,2995.7,2994.3,0.93590063]
[1769651354836,0.77553252,2995.7,2994.3,0.51107155]
[1769651355027,0.77553252,2995.5,2993.9,1.77291739]
[1769651355209,0.77553252,2995.5,2994.1,0.83497412]
[1769651355526,0.77553252,2995.5,2994.2,0.83494338]
[1769651355890,0.83461307,2995.4,2994.1,0.83497545]
[1769651356113,0.83461307,2995.4,2994.0,1.77088451]
[1769651356305,0.49485979,2995.3,2994.1,0.42779086]
[1769651357423,0.49485979,2995.3,2994.0,1.77088451]
[1769651357805,0.83469667,2995.1,2994.0,1.77088451]
[1769651358005,0.83469667,2995.1,2994.0,0.93590063]
[1769651358311,0.83469667,2995.1,2994.0,1.77090001]
[1769651358913,0.83469667,2995.1,2994.1,0.93590063]
[1769651359113,1.70529251,2995.1,2994.1,1.44720258]
[1769651359406,1.70529251,2995.1,2994.1,0.93590063]
[1769651361256,1.70529251,2995.1,2994.1,1.77086855]
[1769651361416,1.70529251,2995.1,2994.2,0.93590063]
[1769651363017,0.699,2995.0,2994.2,0.93590063]
[1769651363628,0.699,2995.0,2993.9,0.93790063]
[1769651363836,0.24042925,2994.9,2994.4,0.002]
[1769651364049,0.24042925,2994.9,2993.9,0.93790063]
[1769651364222,0.24042925,2994.9,2994.1,0.002]
[1769651364424,0.83478028,2994.8,2994.1,0.002]
[1769651364858,1.07520216,2994.9,2994.1,0.93790063]
[1769651365169,0.699,2994.8,2994.1,0.93790063]
[1769651366650,0.83480816,2994.7,2994.1,0.93790063]
[1769651367290,0.699,2994.6,2994.1,0.93790063]
[1769651369099,1.5338501,2994.6,2994.1,0.93790063]
[1769651369280,1.5338501,2994.6,2994.1,0.002]
[1769651369795,2.0211588,2994.6,2993.6,0.002]
[1769651369958,0.77153252,2994.5,2993.6,0.002]
[1769651370286,0.77153252,2994.5,2993.0,1.82835478]
[1769651370483,0.77153252,2994.5,2993.0,0.83728013]
[1769651370651,1.04880165,2994.4,2993.1,0.99107439]
[1769651371384,0.83491968,2994.3,2993.1,1.82632377]
[1769651371758,0.83491968,2994.3,2993.1,0.99107439]
[1769651371956,0.83491968,2994.3,2993.1,1.82632229]
[1769651373082,0.83491968,2994.3,2993.1,0.99107439]
[1769651373251,0.83497545,2994.1,2993.1,1.82632754]
[1769651373453,0.83497545,2994.1,2993.1,0.99107439]
[1769651373784,0.83497545,2994.1,2993.1,1.826328]
[1769651373948,0.83497545,2994.1,2993.1,0.99107439]
[1769651374456,0.699,2994.0,2993.2,0.99107439]
[1769651374649,0.699,2994.0,2993.2,1.17390691]
[1769651375154,0.699,2994.0,2993.0,3.34311456]
[1769651375155,0.76953252,2993.8,2992.5,0.99307439]
[1769651375354,0.83508701,2993.7,2992.5,1.82848801]
[1769651376083,0.83508701,2993.7,2993.3,0.002]
[1769651376285,0.83508701,2993.7,2992.5,1.82848801]
[1769651376458,0.49449676,2993.6,2992.6,0.51702796]
[1769651376658,0.49449676,2993.6,2993.0,0.002]
[1769651377181,0.699,2993.5,2993.0,0.002]
[1769651377676,0.8351707,2993.4,2993.0,0.002]
[1769651379511,0.8351428,2993.5,2993.0,0.002]
[1769651379703,0.699,2993.3,2993.0,0.002]
[1769651381018,0.699,2993.2,2993.0,0.99307439]
[1769651381377,1.15517811,2994.3,2993.0,0.99307439]
[1769651381378,0.27926913,2994.4,2993.0,0.99307439]
[1769651381585,0.8346688,2995.2,2993.5,0.99107439]
[1769651381881,0.699,2994.8,2993.5,0.99107439]
[1769651382075,0.8346688,2995.2,2993.5,0.99107439]
[1769651382299,0.699,2994.8,2993.7,0.99107439]
[1769651382704,0.699,2994.8,2993.8,0.99107439]
[1769651382910,0.699,2994.8,2994.0,0.99107439]
[1769651383081,0.8346688,2995.2,2994.0,0.99107439]
[1769651383277,0.001,2995.5,2994.3,0.99107439]
[1769651383501,0.83436238,2996.3,2994.8,0.99107439]
[1769651383707,0.699,2996.2,2994.9,1.04094224]
[1769651384009,0.699,2996.2,2995.1,0.99107439]
[1769651384305,1.46853252,2996.2,2995.0,0.18757185]
[1769651384506,1.46853252,2996.2,2994.8,0.99107439]
[1769651385007,0.2335703,2996.1,2994.8,0.99107439]
[1769651385807,0.83444592,2996.0,2994.8,0.99107439]
[1769651386019,0.2335703,2995.9,2994.5,0.99107439]
[1769651387222,0.699,2995.7,2994.5,0.99107439]
[1769651387808,0.83455735,2995.6,2994.5,0.99107439]
[1769651388214,0.699,2995.5,2994.5,0.99107439]
[1769651388382,1.18617821,2995.5,2994.6,0.99107439]
[1769651389493,0.699,2995.4,2994.6,0.99107439]
[1769651389782,0.699,2995.4,2994.2,0.04986785]
[1769651389783,0.83464093,2995.3,2994.3,0.99107439]
[1769651390099,0.2335703,2995.1,2993.7,0.99107439]
[1769651390504,1.00310282,2995.1,2993.7,0.99107439]
[1769651390812,0.2335703,2994.9,2993.4,1.04094224]
[1769651390985,1.00310282,2994.9,2993.4,0.99107439]
[1769651392110,0.2335703,2994.7,2993.4,0.99107439]
[1769651392281,0.77462775,2994.7,2993.4,0.99107439]
[1769651392479,0.54105745,2994.7,2993.4,0.99107439]
[1769651392814,0.699,2994.6,2993.4,0.99107439]
[1769651393013,0.699,2994.6,2993.4,1.04094224]
[1769651393323,0.699,2994.6,2993.5,0.99107439]
[1769651393682,0.90648377,2994.6,2993.5,0.99107439]
[1769651394299,0.83486391,2994.5,2993.5,0.99107439]
[1769651395619,0.699,2994.4,2993.5,0.99107439]
[1769651396692,1.53391307,2994.4,2993.5,0.99107439]
[1769651400626,0.699,2994.4,2993.6,0.002]
[1769651400835,1.32190984,2995.2,2994.2,0.98166187]
[1769651401132,0.699,2995.1,2994.2,0.98166187]
[1769651401315,0.699,2995.1,2993.7,0.98166187]
[1769651401494,1.00310282,2995.0,2993.7,0.98166187]
[1769651402593,0.83475241,2994.9,2993.7,0.98166187]
[1769651402789,0.51768649,2994.8,2993.7,0.98166187]
[1769651403423,0.83475241,2994.9,2993.7,0.98166187]
[1769651403424,0.699,2994.7,2993.7,0.98166187]
[1769651403598,0.699,2994.6,2993.8,0.98166187]
[1769651403806,0.83475241,2994.9,2993.8,0.98166187]
[1769651404005,0.699,2994.8,2993.8,0.98166187]
[1769651404201,0.001,2995.6,2994.0,0.98166187]
[1769651404405,1.53358521,2995.5,2994.0,0.98166187]
[1769651404654,0.76953252,2995.1,2993.6,0.002]
[1769651404943,0.76953252,2994.9,2993.6,0.002]
[1769651405947,0.76953252,2994.9,2993.6,0.98366187]
[1769651406831,0.83478028,2994.8,2993.6,0.98366187]
[1769651408828,0.699,2994.7,2993.6,0.98366187]
[1769651411372,0.83483603,2994.6,2993.6,0.98366187]
[1769651411927,0.2335703,2994.5,2993.6,0.002]
[1769651412131,1.32214681,2994.6,2993.6,0.002]
[1769651412354,0.699,2994.5,2993.6,0.002]
[1769651412758,0.699,2994.5,2993.8,0.002]
[1769651413348,0.83489179,2994.4,2993.8,0.002]
[1769651413549,0.4873459,2994.3,2993.8,0.002]
[1769651414150,0.4873459,2994.3,2993.6,0.002]
[1769651414860,0.699,2994.2,2993.6,0.002]
[1769651415671,0.699,2994.2,2993.0,0.83727871]
[1769651415672,0.76953252,2994.0,2993.0,0.002]
[1769651416174,0.83497545,2994.1,2993.0,0.002]
[1769651416384,0.48737671,2994.0,2993.2,0.98366187]
[1769651416678,0.2335703,2994.5,2993.2,0.98366187]
[1769651416679,0.699,2993.9,2993.2,0.98366187]
[1769651417371,0.699,2993.8,2993.3,0.98166187]
[1769651417575,3.33945566,2994.7,2993.4,0.98166187]
[1769651417747,0.699,2994.1,2993.4,0.98166187]
[1769651418550,2.67476708,2994.8,2993.4,0.98166187]
[1769651418747,0.83478028,2994.8,2993.4,0.98166187]
[1769651418966,0.699,2994.7,2993.4,0.98166187]
[1769651419367,0.699,2994.7,2993.5,14.5]
[1769651419568,0.83483603,2994.6,2993.5,14.5]
[1769651419770,0.699,2994.5,2993.5,15.33513891]
[1769651420080,0.699,2994.5,2993.6,1.63168008]
[1769651420280,0.699,2994.5,2993.5,0.83513891]
[1769651420481,0.699,2994.5,2993.4,16.31681393]
[1769651421180,0.699,2994.5,2993.4,15.33515206]
[1769651421403,0.98971322,2994.1,2993.2,0.002]
[1769651421688,0.98971322,2993.9,2992.5,4.002]
[1769651422047,0.98971322,2993.9,2992.5,4.98366187]
[1769651422246,0.98971322,2993.9,2992.6,0.98166187]
[1769651422524,3.33981347,2994.2,2992.6,0.98166187]
[1769651422651,1.53399156,2994.1,2992.6,0.98166187]
[1769651423290,0.83499156,2994.1,2992.6,0.98166187]
[1769651423494,1.53399156,2994.1,2992.6,0.98166187]
[1769651423983,0.83499156,2994.1,2992.8,0.98166187]
[1769651424297,0.699,2994.0,2992.8,0.98166187]
[1769651424471,0.699,2994.0,2992.6,0.83538063]
[1769651424672,0.699,2994.0,2992.7,0.52104945]
[1769651424865,1.68871322,2994.0,2992.7,0.52104945]
[1769651425072,1.68871322,2994.0,2992.8,0.002]
[1769651425272,0.001,2993.9,2992.8,0.002]
[1769651425468,0.001,2993.9,2992.9,0.94534621]
[1769651425715,0.83492652,2994.3,2992.9,0.94534621]
[1769651425886,3.33948111,2994.5,2993.1,0.94534621]
[1769651426210,3.33948111,2994.5,2993.2,1.12340906]
[1769651426981,0.83486391,2994.5,2993.2,1.12340906]
[1769651427303,0.699,2994.4,2993.2,1.12340906]
[1769651428097,0.83491968,2994.3,2993.2,15.62340906]
[1769651428402,0.83491968,2994.3,2993.3,1.64586533]
[1769651428899,0.83491968,2994.3,2993.3,2.54859087]
[1769651432823,0.93156865,2994.6,2993.4,0.90272554]
[1769651433115,0.699,2994.8,2993.4,0.95259339]
[1769651433316,0.699,2994.8,2993.6,0.90272554]
[1769651434103,0.699,2994.8,2993.6,15.40272554]
[1769651434437,0.699,2994.8,2993.7,0.90272554]
[1769651434607,3.33878375,2995.2,2993.8,0.90272554]
[1769651434791,3.33878375,2995.2,2993.7,0.83508462]
[1769651434792,0.699,2995.0,2993.9,1.07650656]
[1769651434991,0.699,2995.0,2993.9,15.57650656]
[1769651435191,4.78970618,2995.2,2993.9,15.57650656]
[1769651435424,1.63861561,2995.1,2993.9,15.57650656]
[1769651436494,0.83475241,2994.9,2993.9,15.57650656]
[1769651436826,0.83475241,2994.9,2994.0,1.55765066]
[1769651437126,0.001,2994.6,2993.9,1.07650656]
[1769651438122,0.94061561,2994.6,2993.9,0.17378102]
[1769651438293,0.94061561,2994.6,2993.5,0.34336526]
[1769651439025,0.83486391,2994.5,2993.5,15.67850779]
[1769651439228,0.8358408,2994.6,2993.6,0.90272554]
[1769651439532,0.001,2994.6,2993.6,0.90272554]
[1769651439731,0.001,2994.6,2993.7,1.66311012]
[1769651439932,0.001,2994.6,2993.8,0.90272554]
[1769651440933,0.001,2994.6,2993.9,0.83503123]
[1769651441236,1.77428484,2995.2,2994.0,0.90272554]
[1769651441395,0.93961561,2995.1,2993.7,1.66311012]
[1769651441845,0.93961561,2995.1,2993.5,0.39323311]
[1769651441993,0.93961561,2995.1,2993.5,0.04986785]
[1769651442513,0.93961561,2995.1,2993.5,0.88500835]
[1769651443042,0.93961561,2994.9,2993.5,0.88500835]
[1769651444033,0.93961561,2994.9,2993.5,1.78773389]
[1769651444439,0.93961561,2994.9,2993.6,0.90272554]
[1769651444642,0.93961561,2994.9,2993.7,1.08149893]
[1769651445004,0.93961561,2994.9,2993.7,1.91657991]
[1769651445005,0.83478028,2994.8,2993.7,1.91657991]
[1769651445743,0.83478028,2994.8,2993.7,1.91658436]
[1769651445926,0.83478028,2994.8,2993.8,15.40272554]
[1769651446516,0.83478028,2994.8,2993.8,14.5]
[1769651446738,0.93961561,2994.7,2993.9,1.46787734]
[1769651446945,0.83483603,2994.6,2993.9,1.46787734]
[1769651447150,1.77445164,2994.6,2993.9,1.46787734]
[1769651447443,3.33934415,2994.7,2993.9,1.46787734]
[1769651447444,0.83482635,2994.7,2993.9,1.46787734]
[1769651447608,0.8348003,2994.8,2994.0,1.68029324]
[1769651448416,0.83472454,2995.0,2994.0,1.68029324]
[1769651448920,0.001,2994.6,2994.0,1.68029324]
[1769651449123,0.001,2994.6,2993.9,0.002]
[1769651449321,0.001,2994.6,2993.9,1.73973397]
[1769651450243,0.93961561,2994.5,2993.9,0.002]
[1769651450538,0.001,2994.6,2993.9,0.83702864]
[1769651450737,0.001,2994.6,2993.9,1.73975418]
[1769651450908,0.001,2994.6,2994.0,0.17397542]
[1769651452011,0.001,2994.6,2994.0,1.91170099]
[1769651452829,0.001,2994.6,2994.1,0.90272554]
[1769651453035,0.66886129,2995.2,2994.1,0.90272554]
[1769651453329,4.27807748,2995.4,2994.1,0.90272554]
[1769651453330,0.83464093,2995.3,2994.2,0.83494756]
[1769651453528,0.83464093,2995.3,2994.3,1.41048113]
[1769651453731,1.77425654,2995.3,2994.3,0.50775559]
[1769651453943,0.93961561,2995.2,2994.1,1.73768325]
[1769651454160,0.83464093,2995.3,2994.2,0.90272554]
[1769651455557,0.83461307,2995.4,2994.3,1.80912318]
[1769651456555,0.83461307,2995.4,2994.4,0.9742035]
[1769651456755,0.83461307,2995.4,2994.5,0.18091232]
[1769651457639,0.83557329,2995.6,2994.5,1.98995558]
[1769651457827,0.83557329,2995.6,2994.6,0.9742035]
[1769651458842,0.001,2995.6,2994.6,0.9742035]
[1769651459159,0.001,2995.8,2994.9,0.9742035]
[1769651459355,0.83550737,2995.8,2994.9,0.9742035]
[1769651459661,0.001,2995.8,2994.9,1.80894372]
[1769651459868,0.001,2995.8,2995.0,0.9742035]
[1769651460086,0.001,2995.8,2995.1,0.18089437]
[1769651460941,0.001,2995.8,2995.1,1.15509787]
[1769651461137,0.001,2995.8,2995.1,0.18089437]
[1769651461349,0.001,2995.8,2995.0,0.9742035]
[1769651461734,0.001,2995.8,2994.7,0.20398234]
[1769651461735,0.979418,2995.8,2994.7,0.20398234]
[1769651461951,0.979418,2995.8,2994.5,0.23078017]
[1769651461952,0.979418,2995.8,2994.8,4.0]
[1769651462463,0.979418,2995.8,2994.5,0.18091232]
[1769651462664,0.979418,2995.8,2994.4,0.83488948]
[1769651464489,0.83452949,2995.7,2994.3,1.02407135]
[1769651464646,1.81393845,2995.8,2994.5,1.02407135]
[1769651464962,0.001,2995.8,2994.7,1.02407135]
[1769651465161,0.83550381,2995.8,2994.7,1.02407135]
[1769651465581,1.81392181,2995.8,2994.7,0.04986785]
[1769651465877,0.978418,2995.7,2994.4,0.9742035]
[1769651466075,0.978418,2995.7,2994.5,0.50240714]
[1769651467278,0.83455735,2995.6,2994.6,0.83483603]
[1769651467446,1.81297535,2995.6,2994.6,0.83483603]
[1769651468341,1.81297535,2995.6,2994.7,0.46766979]
[1769651468952,0.978418,2995.6,2994.7,0.46766979]
[1769651470183,1.81300057,2995.6,2994.7,1.30246711]
[1769651470383,1.81300057,2995.6,2994.7,0.46766979]
[1769651471688,0.978418,2995.5,2994.7,0.46766979]
[1769651471993,0.978418,2995.5,2994.5,1.33725617]
[1769651472486,0.83461307,2995.4,2994.5,0.50240714]
[1769651472690,0.83461307,2995.4,2994.8,0.002]
[1769651472885,0.83561307,2995.4,2994.8,0.002]
[1769651474087,0.001,2995.4,2994.8,0.002]
[1769651481618,0.979418,2995.4,2994.8,0.002]
[1769651484217,0.978418,2995.2,2994.5,0.50440714]
[1769651484513,0.83464093,2995.3,2994.5,0.50440714]
[1769651484881,0.83464093,2995.3,2995.0,0.002]
[1769651485078,0.001,2995.2,2995.0,0.002]
[1769651486195,0.001,2995.4,2995.0,0.002]
[1769651489219,0.95562176,2995.4,2994.8,0.002]
[1769651489597,0.95562176,2995.4,2994.8,0.4022]
[1769651490320,0.95562176,2995.4,2994.8,0.002]
[1769651491118,1.78926269,2995.3,2994.8,0.002]
[1769651492929,0.95462176,2995.2,2994.5,0.002]
[1769651493226,0.95462176,2995.0,2994.5,0.002]
[1769651493431,0.95462176,2994.9,2994.5,0.002]
[1769651494246,0.95462176,2994.9,2994.2,0.002]
[1769651494616,1.53369667,2995.1,2994.2,0.002]
[1769651494843,0.83469667,2995.1,2994.2,0.002]
[1769651495042,0.83464093,2995.3,2994.3,1.80940145]
[1769651495259,0.83464093,2995.3,2994.4,0.18114015]
[1769651495552,0.001,2995.4,2994.4,1.15562192]
[1769651495754,0.83561852,2995.4,2994.4,1.15562192]
[1769651495936,0.83561325,2995.4,2994.5,1.17353593]
[1769651496322,0.95462176,2995.3,2994.5,0.19905416]
[1769651497152,0.95462176,2995.1,2994.7,0.002]
[1769651499523,0.001,2995.2,2994.7,0.002]
[1769651500561,0.83567063,2995.2,2994.7,0.002]
[1769651501254,0.001,2995.4,2994.7,0.97648177]
[1769651501729,0.001,2995.4,2994.7,1.81126951]
[1769651501935,0.001,2995.4,2994.8,0.18112695]
[1769651502152,0.001,2995.4,2994.7,0.83678774]
[1769651502321,0.001,2995.4,2994.7,0.002]
[1769651502852,0.95562176,2995.4,2994.7,0.002]
[1769651504057,0.95462176,2995.2,2994.7,0.002]
[1769651507346,0.83469667,2995.1,2994.7,0.002]
[1769651509465,0.001,2995.0,2994.7,0.002]
[1769651509826,0.95462176,2994.9,2994.5,0.002]
[1769651510430,0.95462176,2994.8,2994.2,4.002]
[1769651511135,0.95462176,2994.8,2994.2,0.002]
[1769651511664,0.83479259,2994.8,2994.2,0.97648177]
[1769651511843,0.001,2995.0,2994.2,0.97648177]
[1769651512044,0.83572644,2995.0,2994.2,0.97648177]
[1769651512359,0.001,2995.0,2994.2,0.97648177]
[1769651512564,0.001,2995.0,2994.3,4.0]
[1769651512782,0.001,2995.0,2994.4,0.49764818]
[1769651513063,0.001,2995.0,2994.5,14.5]
[1769651513633,0.001,2995.0,2994.5,15.33485867]
[1769651513870,0.001,2995.0,2994.5,14.5]
[1769651514966,0.001,2995.0,2994.4,0.49764818]
[1769651515462,0.001,2995.0,2994.2,15.33692952]
[1769651516254,0.83572454,2995.0,2994.2,15.33692952]
[1769651516637,1.75507248,2995.0,2994.2,14.502]
[1769651516838,1.75507248,2995.0,2994.2,0.002]
[1769651517472,0.001,2995.0,2994.3,0.91472733]
[1769651517640,0.001,2995.0,2994.4,0.1751671]
[1769651517973,0.001,2995.0,2994.2,0.83694396]
[1769651519547,0.92034794,2995.0,2994.2,0.83694396]
[1769651520269,0.92034794,2995.0,2994.2,0.002]
[1769651520472,0.83475241,2994.9,2994.2,0.002]
[1769651520862,0.91934794,2994.8,2994.2,0.002]
[1769651521176,0.91934794,2994.6,2994.2,0.002]
[1769651521386,0.001,2994.8,2994.2,0.91672733]
[1769651521872,0.001,2994.8,2994.2,0.002]
[1769651524749,0.001,2994.8,2994.2,14.502]
[1769651524975,0.001,2994.8,2994.3,1.53389652]
[1769651525477,0.001,2994.8,2994.3,2.36878955]
[1769651526179,0.001,2994.8,2994.3,1.53389652]
[1769651526976,0.001,2994.8,2994.3,2.36881151]
[1769651530572,0.001,2994.8,2994.3,0.83491499]
[1769651531888,0.92034794,2994.8,2994.2,15.33693727]
[1769651532572,1.75513781,2994.8,2994.2,14.502]
[1769651532768,0.91934794,2994.7,2994.2,0.002]
[1769651533088,0.91934794,2994.5,2994.1,0.002]
[1769651534394,0.91934794,2994.7,2994.3,0.002]
[1769651534799,0.83483603,2994.6,2994.3,0.002]
[1769651535699,1.75418397,2994.6,2994.3,0.002]
[1769651538096,1.75418397,2994.6,2994.1,0.002]
[1769651538097,0.91934794,2994.5,2994.1,0.002]
[1769651538295,1.09476634,2994.4,2994.1,0.002]
[1769651538505,1.09476634,2994.4,2993.6,0.002]
[1769651538673,1.09476634,2994.4,2993.6,4.002]
[1769651538873,0.91934794,2994.2,2993.6,4.002]
[1769651539468,0.91934794,2994.2,2993.6,0.002]
[1769651539703,1.0947747,2994.1,2993.6,0.002]
[1769651542205,0.91934794,2994.0,2993.6,0.002]
[1769651543907,0.17542676,2994.1,2993.6,0.002]
[1769651544210,0.91934794,2994.2,2993.6,0.002]
[1769651544417,1.75430003,2994.2,2993.6,0.002]
[1769651545917,1.75430003,2994.2,2993.8,0.002]
[1769651546110,0.91934794,2994.2,2993.8,0.002]
[1769651546411,0.95169284,2994.2,2993.8,0.002]
[1769651546708,1.48185514,2994.2,2993.8,0.002]
[1769651547178,0.95169284,2994.1,2993.8,0.002]
[1769651547680,1.78667714,2994.1,2993.8,0.002]
[1769651549212,0.95169284,2994.1,2993.8,0.002]
[1769651549412,1.78667926,2994.1,2993.8,0.002]
[1769651552308,0.95169284,2994.1,2993.8,0.002]
[1769651552493,1.78667634,2994.1,2993.8,0.002]
[1769651553531,0.9867089,2994.0,2993.5,0.002]
[1769651553708,6.8663906,2994.1,2993.1,0.002]
[1769651553709,0.9867089,2993.7,2993.1,0.002]
[1769651554044,0.9867089,2993.7,2993.1,4.002]
[1769651554580,0.9867089,2993.6,2993.1,4.002]
[1769651554812,0.9867089,2993.6,2993.1,0.002]
[1769651555009,0.9867089,2993.6,2993.1,1.5359309]
[1769651555912,1.82178793,2993.8,2993.1,1.5359309]
[1769651556236,0.9867089,2993.8,2993.1,2.37118046]
[1769651556591,1.82176931,2993.8,2993.1,2.37118046]
[1769651556801,1.82176931,2993.8,2993.1,0.83724956]
[1769651557801,1.82176931,2993.8,2993.3,0.002]
[1769651558204,0.9867089,2994.0,2993.3,0.002]
[1769651558386,1.82166864,2994.2,2993.3,0.96705744]
[1769651559034,0.9867089,2994.2,2993.3,0.96705744]
[1769651559211,0.83490175,2994.4,2993.3,0.96705744]
[1769651559394,0.83490175,2994.4,2993.5,0.96505744]
[1769651559788,0.83490175,2994.4,2993.6,1.80017235]
[1769651560905,0.9867089,2994.3,2993.5,0.83512404]
[1769651561511,0.9867089,2994.3,2993.5,15.33512404]
[1769651561698,1.82165646,2994.2,2993.5,15.33512404]
[1769651561900,1.82165646,2994.2,2993.6,1.60349705]
[1769651563405,0.9867089,2994.5,2993.6,2.56855449]
[1769651564023,0.83489179,2994.4,2993.6,2.56855449]
[1769651564217,1.82160069,2994.4,2993.6,2.56855449]